fUSD/lending_fUSD_20250904
["ID","MTS","AMOUNT","RATE_DAILY","PERIOD"]
[383594491,1757015462375,-400.0,0.00028546,2]
[383594492,1757015462384,-400.0,0.00028546,2]
[383594493,1757015462393,-505.57,0.00028546,2]
[383594494,1757015462405,-425.44,0.00028546,2]
[383594495,1757015462416,-340.96,0.00028546,2]
[383594496,1757015462427,-279.46,0.00028546,2]
[383594497,1757015462437,-513.06,0.00028546,2]
[383594498,1757015462446,-350.84,0.00028546,2]
[383594499,1757015462456,-400.0,0.00028546,2]
[383594500,1757015462467,-400.0,0.00028546,2]
[383594501,1757015462477,-400.0,0.00028546,2]
[383594502,1757015462486,-400.0,0.00028546,2]
[383594503,1757015462495,-400.0,0.00028546,2]
[383594504,1757015462505,-541.0,0.00028546,2]
[383594505,1757015462514,-238.5,0.00028546,2]
[383594506,1757015462524,-400.0,0.00028546,2]
[383594507,1757015462534,-400.0,0.00028546,2]
[383594508,1757015462544,-400.0,0.00028546,2]
[383594509,1757015462553,-250.68,0.00028546,2]
[383594510,1757015462562,-514.9,0.00028546,2]
[383594511,1757015462571,-400.0,0.00028546,2]
[383594512,1757015462580,-400.0,0.00028546,2]
[383594513,1757015462590,-400.0,0.00028546,2]
[383594514,1757015462599,-453.58,0.00028546,2]
[383594515,1757015462608,-400.0,0.00028546,2]
[383594516,1757015462617,-204.92,0.00028546,2]
[383594517,1757015462627,-400.0,0.00028546,2]
[383594518,1757015462636,-393.16,0.00028546,2]
[383594519,1757015462646,-400.0,0.00028546,2]
[383594520,1757015462656,-400.0,0.00028546,2]
[383594521,1757015462665,-400.0,0.00028546,2]
[383594522,1757015462674,-400.0,0.00028546,2]
[383594523,1757015462683,-400.0,0.00028546,2]
[383594524,1757015462693,-400.0,0.00028546,2]
[383594525,1757015462703,-400.0,0.00028546,2]
[383594526,1757015462714,-400.0,0.00028546,2]
[383594527,1757015462724,-400.0,0.00028546,2]
[383594528,1757015462734,-400.0,0.00028546,2]
[383594529,1757015462743,-125.46236825,0.00028546,2]
[383594531,1757016044550,180.63,0.00026315,120]
[383594535,1757016278311,154.01,0.00013699,2]
[383594536,1757016316177,-6000.0,0.00037419,31]
[383594537,1757016316218,-195500.74482594,0.00037419,30]
[383594538,1757016316246,-28061.80004373,0.00037419,30]
[383594539,1757016316273,-202.94479941,0.00037419,120]
[383594540,1757016316302,-176848.34282673,0.00037419,30]
[383594541,1757016316330,-202.9253308,0.00037419,120]
[383594542,1757016316362,-1180586.13822163,0.00037419,30]
[383594543,1757016316390,-5100.0,0.00037419,36]
[383594544,1757016316417,-4602.03879666,0.00037419,30]
[383594545,1757016316443,-103757.82643804,0.00037419,30]
[383594546,1757016316468,-22861.21978217,0.00037419,30]
[383594547,1757016316497,-17844.85461477,0.00037419,30]
[383594548,1757016316523,-8507.76830838,0.00037419,30]
[383594549,1757016316548,-254000.0,0.00037419,120]
[383594550,1757016316574,-17211.42197902,0.00037419,90]
[383594551,1757016316601,-1352.0,0.00037419,30]
[383594552,1757016316629,-5118.60501428,0.00037419,30]
[383594553,1757016316655,-1102.91,0.00037419,120]
[383594554,1757016316681,-179.0,0.00037419,60]
[383594555,1757016316708,-158.52334707,0.00037419,60]
[383594556,1757016316740,-211.60073693,0.00037419,120]
[383594557,1757016316768,-267.73147222,0.00037419,120]
[383594558,1757016316795,-248.42666552,0.00037419,30]
[383594559,1757016316822,-199.38308718,0.00037419,90]
[383594560,1757016316848,-150.39492845,0.00037419,120]
[383594561,1757016316874,-165.7267283,0.00037419,120]
[383594562,1757016316901,-165.16469692,0.00037419,30]
[383594563,1757016316927,-159.94748841,0.00037419,120]
[383594564,1757016316953,-306.35240033,0.00037419,120]
[383594565,1757016316980,-1617.67752734,0.00037419,120]
[383594566,1757016317008,-154.24030877,0.00037419,30]
[383594567,1757016317035,-915.5,0.00037419,120]
[383594568,1757016317060,-392.45546073,0.00037419,120]
[383594569,1757016317086,-282506.34515246,0.00037419,120]
[383594570,1757016317112,-6399.0,0.00037419,60]
[383594571,1757016317386,-6403.0,0.00037419,60]
[383594572,1757016317416,-6399.0,0.00037419,60]
[383594573,1757016317445,-6399.0,0.00037419,60]
[383594574,1757016317472,-6399.0,0.00037419,60]
[383594575,1757016317500,-176.0,0.00037419,60]
[383594576,1757016317527,-196.0,0.00037419,60]
[383594577,1757016317555,-500.70821268,0.00037419,60]
[383594578,1757016317580,-2000.0,0.00037419,95]
[383594579,1757016317606,-1000.0,0.00037419,30]
[383594580,1757016317638,-443.21906621,0.00037419,30]
[383594581,1757016317664,-150.0,0.00037419,30]
[383594582,1757016317691,-544.82054372,0.00037419,120]
[383594583,1757016317718,-2229.54145977,0.00037419,91]
[383594584,1757016317746,-520.66297635,0.00037419,30]
[383594585,1757016317773,-415.83047884,0.00037419,120]
[383594586,1757016317800,-463.43194581,0.00037419,30]
[383594587,1757016317827,-623.78072651,0.00037419,30]
[383594588,1757016317855,-350.31750093,0.00037419,30]
[383594589,1757016317882,-806.04963125,0.00037419,30]
[383594590,1757016317908,-167.95003323,0.00037419,30]
[383594591,1757016317934,-5826.10236554,0.00037419,120]
[383594592,1757016317960,-192.61238827,0.00037419,30]
[383594593,1757016317987,-344.93793752,0.00037419,30]
[383594594,1757016318015,-346.07708644,0.00037419,120]
[383594595,1757016318043,-445.65363407,0.00037419,120]
[383594596,1757016318070,-213413.68557168,0.00037419,120]
[383594597,1757016318097,-211.42444183,0.00037419,120]
[383594598,1757016318125,-956.58007723,0.00037419,30]
[383594599,1757016318154,-179.28549044,0.00037419,120]
[383594600,1757016318181,-177.16939009,0.00037419,30]
[383594601,1757016318209,-271.18085787,0.00037419,120]
[383594602,1757016318238,-231.65033334,0.00037419,120]
[383594603,1757016318267,-574.94452094,0.00037419,120]
[383594604,1757016318295,-577.2275307,0.00037419,120]
[383594605,1757016318320,-170.84922537,0.00037419,30]
[383594606,1757016318349,-577.85591764,0.00037419,120]
[383594607,1757016318374,-283.44178507,0.00037419,120]
[383594608,1757016318401,-182.18780917,0.00037419,90]
[383594609,1757016318429,-590.88996308,0.00037419,120]
[383594610,1757016318454,-716.8580882,0.00037419,120]
[383594611,1757016318480,-1859.39897212,0.00037419,120]
[383594612,1757016318507,-59668.82437834,0.00037419,60]
[383594613,1757016318533,-237.08536253,0.00037419,30]
[383594614,1757016318559,-189.33615205,0.00037419,120]
[383594615,1757016318585,-35802.70930617,0.00037419,60]
[383594616,1757016318614,-422.81304616,0.00037419,60]
[383594617,1757016318641,-2184.25440731,0.00037419,120]
[383594618,1757016318668,-1363.44368291,0.00037419,120]
[383594619,1757016318695,-506.60486501,0.00037419,120]
[383594620,1757016318724,-786.7346116,0.00037419,120]
[383594621,1757016318752,-245.80445653,0.00037419,120]
[383594622,1757016318784,-28918.591461,0.00037419,30]
[383594623,1757016318812,-1441.33327013,0.00037419,56]
[383594624,1757016318839,-268.70001467,0.00037419,30]
[383594625,1757016318867,-493.73676112,0.00037419,30]
[383594626,1757016318894,-755.23370782,0.00037419,120]
[383594627,1757016318921,-857.60187458,0.00037419,60]
[383594628,1757016318948,-836.42567823,0.00037419,30]
[383594629,1757016318975,-500.0,0.00037419,120]
[383594630,1757016319004,-294.0,0.00037419,30]
[383594631,1757016319031,-212.7,0.00037419,30]
[383594632,1757016319059,-119954.37,0.00037419,60]
[383594633,1757016319086,-988.0,0.00037419,60]
[383594634,1757016319115,-828.66200108,0.00037419,120]
[383594635,1757016319143,-1017.0,0.00037419,120]
[383594636,1757016319171,-621.0,0.00037419,30]
[383594637,1757016319198,-3771.31549875,0.00037419,120]
[383594638,1757016319225,-331.67344065,0.00037419,120]
[383594639,1757016319252,-2061.71775981,0.00037419,120]
[383594640,1757016319279,-331.86621991,0.00037419,120]
[383594641,1757016319307,-510.37081236,0.00037419,120]
[383594642,1757016319334,-621.02926861,0.00037419,120]
[383594643,1757016319360,-162.29116795,0.00037419,120]
[383594644,1757016319388,-500.0,0.00037419,120]
[383594645,1757016319417,-500.0,0.00037419,120]
[383594646,1757016319444,-200.0,0.00037419,120]
[383594647,1757016319472,-50000.0,0.00037419,30]
[383594648,1757016319499,-94237.43385062,0.00037419,30]
[383594649,1757016324302,-10971.56614938,0.00037419,30]
[383594650,1757016324331,-453.75232503,0.00037419,120]
[383594651,1757016324360,-23478.62339691,0.00037419,120]
[383594652,1757016324390,-400.0,0.00037419,120]
[383594653,1757016324418,-1075.0,0.00037419,30]
[383594654,1757016324446,-400.0,0.00037419,120]
[383594655,1757016324472,-2100.0,0.00037419,120]
[383594656,1757016324501,-1462.2914634,0.00037419,120]
[383594657,1757016324527,-2959658.76666528,0.00037419,30]
[383594658,1757016324864,250.0,0.00015,2]
[383594659,1757016327929,-1774565.05865585,0.00037419,30]
[383594660,1757016327957,-341.0,0.00037419,30]
[383594661,1757016327984,-298.78,0.00037419,30]
[383594662,1757016328011,-414.740724,0.00037419,120]
[383594663,1757016328038,-18986.5021112,0.00037419,30]
[383594664,1757016328066,-32947.39767129,0.00037419,30]
[383594665,1757016328093,-1800.0,0.00037419,120]
[383594666,1757016328120,-2100.0,0.00037419,120]
[383594667,1757016328146,-244.22857713,0.00037419,120]
[383594668,1757016328174,-836850.0,0.00037419,60]
[383594669,1757016328201,-611.61533193,0.00037419,120]
[383594670,1757016328230,-330840.6769286,0.00037419,30]
[383594671,1757016333041,-2023553.41398095,0.00037419,30]
[383594672,1757016333073,-400.0,0.00037419,120]
[383594673,1757016333103,-50000.0,0.00037419,75]
[383594674,1757016333134,-317.95652909,0.00037419,120]
[383594675,1757016333164,-5100.0,0.00037419,35]
[383594676,1757016333193,-2647.08115446,0.00037419,120]
[383594677,1757016333221,-543.91527831,0.00037419,120]
[383594678,1757016333250,-1087.0,0.00037419,30]
[383594679,1757016333279,-1087.0,0.00037419,30]
[383594680,1757016333316,-1087.0,0.00037419,30]
[383594681,1757016333347,-1087.0,0.00037419,30]
[383594682,1757016333380,-1087.0,0.00037419,30]
[383594686,1757016402732,-200.0,0.00030137,120]
[383594687,1757016402759,-597.0,0.00030137,120]
[383594688,1757016402787,-322.70923014,0.00030137,120]
[383594689,1757016403074,-412.0,0.00030137,120]
[383594690,1757016403120,-1000.0,0.000302,120]
[383594691,1757016403149,-542.35991362,0.000302,120]
[383594692,1757016403176,-45308.07477788,0.00030303,120]
[383594693,1757016403205,-212.59699798,0.000304,120]
[383594694,1757016403242,-150.0,0.00030684,120]
[383594695,1757016403274,-150.0,0.00030821,120]
[383594696,1757016403301,-4712.68421984,0.00030888,60]
[383594697,1757016403328,-150.0,0.00030958,120]
[383594698,1757016403355,-4893.0165451,0.00031,120]
[383594699,1757016403383,-10019.35462052,0.00031,120]
[383594700,1757016403412,-3010.21128815,0.00031,120]
[383594701,1757016403441,-160.0,0.00031,120]
[383594702,1757016403469,-3010.21128815,0.00031,120]
[383594703,1757016403499,-212.59699798,0.00031,120]
[383594704,1757016403534,-150.0,0.00031095,120]
[383594705,1757016403563,-150.0,0.00031232,120]
[383594706,1757016403593,-150.0,0.00031369,120]
[383594707,1757016403623,-150.0,0.00031506,120]
[383594708,1757016403653,-150.0,0.00031643,120]
[383594709,1757016403680,-150.0,0.0003178,120]
[383594710,1757016403707,-1000.0,0.000318,120]
[383594711,1757016403734,-409.46266986,0.0003186,120]
[383594712,1757016403761,-150.0,0.00031917,120]
[383594713,1757016403791,-400.0,0.00032,120]
[383594714,1757016403818,-150.0,0.00032054,120]
[383594715,1757016403845,-150.0,0.00032191,120]
[383594716,1757016403872,-150.0,0.00032328,120]
[383594717,1757016403900,-150.0,0.00032465,120]
[383594718,1757016403925,-150.0,0.00032602,120]
[383594719,1757016403954,-150.0,0.00032739,120]
[383594720,1757016403982,-150.0,0.00032876,120]
[383594721,1757016404010,-400.0,0.00032876,120]
[383594722,1757016404036,-174.70753413,0.00032876,120]
[383594723,1757016404065,-700.0,0.00032876,120]
[383594724,1757016404093,-700.0,0.00032876,120]
[383594725,1757016404121,-700.0,0.00032876,120]
[383594726,1757016404149,-731.64679617,0.00032876,120]
[383594727,1757016404181,-160.48713276,0.00033,60]
[383594728,1757016404207,-150.0,0.00033013,120]
[383594729,1757016404234,-150.0,0.0003315,120]
[383594730,1757016404261,-150.0,0.00033287,120]
[383594731,1757016404288,-246.39638837,0.00033424,120]
[383594732,1757016404319,-400.0,0.00034,120]
[383594733,1757016404347,-1000.0,0.00034246,120]
[383594734,1757016404374,-1139.50640347,0.00034273,120]
[383594735,1757016404405,-1224.30998683,0.0003485,60]
[383594736,1757016404436,-174.18,0.00034988,60]
[383594737,1757016404462,-195327.21697584,0.00035,120]
[383594738,1757016404488,-215.0,0.00035,120]
[383594739,1757016404515,-604.67222291,0.00035,120]
[383594740,1757016404541,-3758.04574248,0.00035,90]
[383594741,1757016404568,-200.0,0.00035,120]
[383594742,1757016404597,-3010.21128815,0.00035,120]
[383594743,1757016404637,-200.0,0.00035,120]
[383594744,1757016404668,-174.18,0.00035088,60]
[383594745,1757016404699,-174.20441723,0.00035188,60]
[383594746,1757016404729,-178.26,0.00035667,60]
[383594747,1757016404758,-150.0,0.00035841,120]
[383594748,1757016404786,-150.0,0.00035874,120]
[383594749,1757016404818,-150.0,0.00035919,120]
[383594750,1757016404853,-150.0,0.00035923,120]
[383594751,1757016404881,-150.0,0.00035947,120]
[383594752,1757016404911,-701.26943182,0.00036,120]
[383594753,1757016404938,-400.0,0.00036,120]
[383594754,1757016404965,-382.30320038,0.00036,120]
[383594755,1757016404998,-150.0,0.00036004,120]
[383594756,1757016405025,-150.0,0.00036029,120]
[383594757,1757016405053,-150.0,0.00036036,120]
[383594758,1757016405082,-150.0,0.00036073,120]
[383594759,1757016405114,-150.0,0.00036107,120]
[383594760,1757016405143,-150.0,0.00036198,120]
[383594761,1757016405173,-150.0,0.00036305,120]
[383594762,1757016405201,-150.0,0.0003638,120]
[383594763,1757016405232,-150.0,0.00036495,120]
[383594764,1757016405259,-1335.90121518,0.000365,120]
[383594765,1757016405287,-178.26,0.00036543,60]
[383594766,1757016405316,-150.0,0.0003659,120]
[383594767,1757016405344,-150.0,0.00036595,120]
[383594768,1757016405581,-150.0,0.00036629,120]
[383594769,1757016405616,-150.0,0.00036724,120]
[383594770,1757016405644,-150.0,0.00036784,120]
[383594771,1757016405673,-23442.4058024,0.000368,120]
[383594772,1757016405701,-500.0,0.0003688,120]
[383594773,1757016405729,-150.0,0.00036896,120]
[383594774,1757016405758,-150.0,0.00036918,120]
[383594775,1757016405787,-150.0,0.00036934,120]
[383594776,1757016405816,-150.0,0.00036935,120]
[383594777,1757016405844,-500.0,0.00036986,120]
[383594778,1757016405872,-500.0,0.00036986,120]
[383594779,1757016405902,-500.0,0.00036986,120]
[383594780,1757016405929,-500.0,0.00036986,120]
[383594781,1757016405957,-500.0,0.00036986,120]
[383594782,1757016405984,-500.0,0.00036986,120]
[383594783,1757016406012,-500.0,0.00036986,120]
[383594784,1757016406039,-500.0,0.00036986,120]
[383594785,1757016406065,-500.0,0.00036986,120]
[383594786,1757016406096,-500.0,0.00036986,120]
[383594787,1757016406123,-500.0,0.00036986,120]
[383594788,1757016406149,-500.0,0.00036986,120]
[383594789,1757016406176,-500.0,0.00036986,120]
[383594790,1757016406447,-500.0,0.00036986,120]
[383594791,1757016406476,-236.45388986,0.00036986,120]
[383594792,1757016406503,-538.79833595,0.00037,120]
[383594793,1757016406528,-10000.0,0.00037,120]
[383594794,1757016406553,-5120.79387482,0.00037,60]
[383594795,1757016406580,-23480.0,0.00037,120]
[383594796,1757016406608,-538.00592432,0.00037,120]
[383594797,1757016406638,-150.0,0.00037082,120]
[383594798,1757016406665,-150.0,0.00037114,120]
[383594799,1757016406691,-200.0,0.00037182,120]
[383594800,1757016406717,-377.92562367,0.00037182,120]
[383594801,1757016406744,-150.0,0.00037253,120]
[383594802,1757016406770,-4886.0,0.000373,120]
[383594803,1757016406796,-150.0,0.00037349,120]
[383594804,1757016406822,-150.0,0.00037372,120]
[383594805,1757016406849,-200.0,0.00037415,120]
[383594806,1757016406887,-178.26,0.00037419,60]
[383594807,1757016406915,-218.0,0.000375,120]
[383594808,1757016406941,-300.0,0.00037572,85]
[383594809,1757016406968,-150.0,0.00037612,120]
[383594810,1757016406995,-150.0,0.00037692,120]
[383594811,1757016407020,-1444.0,0.00037753,120]
[383594812,1757016407047,-150.0,0.00037782,120]
[383594813,1757016407073,-150.0,0.00037817,120]
[383594814,1757016407101,-150.0,0.00037827,120]
[383594815,1757016407128,-150.0,0.00037841,120]
[383594816,1757016407155,-483.49,0.000379,60]
[383594817,1757016407182,-150.0,0.00037945,120]
[383594818,1757016407215,-204.0,0.00037956,120]
[383594819,1757016407242,-9130.338726,0.00038,120]
[383594820,1757016407268,-158.0,0.00038,120]
[383594821,1757016407293,-10000.0,0.00038,120]
[383594822,1757016407320,-500.0,0.00038,120]
[383594823,1757016407346,-1000.0,0.00038,120]
[383594824,1757016407372,-153.0,0.00038,120]
[383594825,1757016407399,-150.0,0.00038015,120]
[383594826,1757016407425,-150.0,0.00038057,120]
[383594827,1757016407452,-150.0,0.00038149,120]
[383594828,1757016407482,-150.0,0.0003821,120]
[383594829,1757016407508,-150.0,0.00038311,120]
[383594830,1757016407535,-1741.35,0.00038356,120]
[383594831,1757016407563,-150.0,0.00038389,120]
[383594832,1757016407590,-150.52078177,0.000384,60]
[383594833,1757016407617,-151.01565224,0.000384,120]
[383594834,1757016407644,-1174.0,0.000385,120]
[383594835,1757016407674,-150.0,0.00038527,120]
[383594836,1757016407704,-150.0,0.00038557,120]
[383594837,1757016407733,-560.0,0.00038603,90]
[383594838,1757016407760,-150.0,0.00038619,120]
[383594839,1757016407788,-150.0,0.00038641,120]
[383594840,1757016407818,-150.0,0.00038665,120]
[383594841,1757016407848,-150.0,0.00038711,120]
[383594842,1757016407875,-150.0,0.00038721,120]
[383594843,1757016407905,-150.0,0.00038889,120]
[383594844,1757016407931,-487.83872145,0.000389,120]
[383594845,1757016407957,-150.02657452,0.00039,120]
[383594846,1757016407983,-1538.56027936,0.00039,120]
[383594847,1757016408010,-1525.0,0.00039,120]
[383594848,1757016408051,-10000.0,0.00039,120]
[383594849,1757016408084,-150.0,0.00039142,120]
[383594850,1757016408114,-1741.35,0.00039178,120]
[383594851,1757016408144,-150.0,0.00039248,120]
[383594852,1757016408174,-150.0,0.00039257,120]
[383594853,1757016408203,-150.0,0.00039431,120]
[383594854,1757016408233,-180.63,0.00039472,120]
[383594855,1757016408260,-560.0,0.00039476,90]
[383594856,1757016408287,-150.0,0.0003951,120]
[383594857,1757016408317,-150.0,0.00039538,120]
[383594858,1757016408346,-150.0,0.00039552,120]
[383594859,1757016408375,-150.0,0.00039566,120]
[383594860,1757016408403,-150.0,0.00039602,120]
[383594861,1757016408431,-150.0,0.00039651,120]
[383594862,1757016408459,-150.0,0.00039659,120]
[383594863,1757016408485,-353.1274888,0.000397,120]
[383594864,1757016408517,-301.5364981,0.000397,120]
[383594865,1757016408545,-150.0,0.000397,120]
[383594866,1757016408575,-150.0,0.00039718,120]
[383594867,1757016408603,-150.0,0.00039792,120]
[383594868,1757016408631,-632.30447507,0.000398,120]
[383594869,1757016408660,-153.0,0.000398,120]
[383594870,1757016408687,-150.0,0.00039803,120]
[383594871,1757016408714,-165.0,0.00039871,90]
[383594872,1757016408743,-193.57,0.00039873,120]
[383594873,1757016408772,-534.0,0.00039926,90]
[383594874,1757016408802,-500.0,0.0004,120]
[383594875,1757016408831,-158.10864523,0.0004,120]
[383594876,1757016408860,-178.04831203,0.0004,120]
[383594877,1757016408888,-1850.33749213,0.0004,120]
[383594878,1757016408916,-689.34431554,0.0004,120]
[383594879,1757016408944,-238.8859549,0.0004,120]
[383594880,1757016408972,-502.42790234,0.0004,120]
[383594881,1757016409007,-421.83168741,0.0004,120]
[383594882,1757016409038,-700.0,0.0004,120]
[383594883,1757016409066,-1000.0,0.0004,120]
[383594884,1757016409094,-270.40976913,0.0004,120]
[383594885,1757016409123,-11000.0,0.0004,90]
[383594886,1757016409152,-198.0,0.0004,120]
[383594887,1757016409181,-10936.4389175,0.0004,120]
[383594888,1757016409209,-206.7,0.0004,120]
[383594889,1757016409236,-425.3674853,0.0004,120]
[383594890,1757016409263,-206.67882434,0.0004,120]
[383594891,1757016409290,-250.740081,0.0004,120]
[383594892,1757016409316,-10000.0,0.0004,120]
[383594893,1757016409590,-431.65283706,0.0004,60]
[383594894,1757016409625,-599.37987778,0.0004,120]
[383594895,1757016409651,-337.39,0.0004,120]
[383594896,1757016409679,-885.26,0.0004,120]
[383594897,1757016409705,-258.01,0.0004,120]
[383594898,1757016409731,-217.15,0.0004,120]
[383594899,1757016409756,-230.12,0.0004,120]
[383594900,1757016409782,-791.07,0.0004,120]
[383594901,1757016409812,-534.0,0.0004,90]
[383594902,1757016409840,-1741.35,0.0004,120]
[383594903,1757016409867,-195.67,0.0004,120]
[383594904,1757016409896,-200.59,0.0004,120]
[383594905,1757016409923,-1398.55159226,0.0004017,60]
[383594906,1757016409950,-560.0,0.00040281,90]
[383594907,1757016409976,-188.91532648,0.000405,120]
[383594908,1757016410004,-1741.35,0.00040821,120]
[383594909,1757016410029,-560.0,0.00040886,90]
[383594910,1757016410055,-3952.8090422,0.000409,120]
[383594911,1757016410084,-5000.0,0.000409,120]
[383594912,1757016410109,-212.0481833,0.00040999,120]
[383594913,1757016410134,-401.204475,0.00040999,120]
[383594914,1757016410159,-1019.0,0.00041,120]
[383594915,1757016410184,-1000.0,0.00041,60]
[383594916,1757016410208,-234.44591786,0.00041,120]
[383594917,1757016410232,-426.63,0.00041,120]
[383594918,1757016410257,-1525.0,0.00041,120]
[383594919,1757016410282,-10000.0,0.00041,120]
[383594920,1757016410307,-1315.6,0.00041041,120]
[383594921,1757016410333,-1315.6,0.00041041,120]
[383594922,1757016410358,-1315.6,0.00041041,120]
[383594923,1757016410383,-1315.6,0.00041041,120]
[383594924,1757016410406,-358.69,0.00041096,120]
[383594925,1757016410429,-272.0,0.00041096,120]
[383594926,1757016410456,-1822.4764448,0.000411,120]
[383594927,1757016410482,-1822.4764448,0.000411,120]
[383594928,1757016410508,-1822.4764448,0.000411,120]
[383594929,1757016410534,-1822.4764448,0.000411,120]
[383594930,1757016410561,-1822.4764448,0.000411,120]
[383594931,1757016410588,-1822.4764448,0.000411,120]
[383594932,1757016410614,-1822.4764448,0.000411,120]
[383594933,1757016410640,-1822.4764448,0.000411,120]
[383594934,1757016410681,-1822.4764448,0.000411,120]
[383594935,1757016410711,-1822.4764448,0.000411,120]
[383594936,1757016410738,-1822.4764448,0.000411,120]
[383594937,1757016410766,-1822.4764448,0.000411,120]
[383594938,1757016410794,-1822.4764448,0.000411,120]
[383594939,1757016410823,-1822.4764448,0.000411,120]
[383594940,1757016410852,-1822.4764448,0.000411,120]
[383594941,1757016410880,-1822.4764448,0.000411,120]
[383594942,1757016410908,-1822.4764448,0.000411,120]
[383594943,1757016410938,-1822.4764448,0.000411,120]
[383594944,1757016410965,-1822.4764448,0.000411,120]
[383594945,1757016410991,-1822.47,0.000411,120]
[383594946,1757016411017,-799.49453514,0.000411,120]
[383594947,1757016411044,-799.49453514,0.000411,120]
[383594948,1757016411074,-799.49453514,0.000411,120]
[383594949,1757016411100,-799.49453514,0.000411,120]
[383594950,1757016411132,-799.49453514,0.000411,120]
[383594951,1757016411161,-799.49453514,0.000411,120]
[383594952,1757016411190,-799.49453514,0.000411,120]
[383594953,1757016411216,-799.49453514,0.000411,120]
[383594954,1757016411241,-799.49453514,0.000411,120]
[383594955,1757016411265,-799.49453514,0.000411,120]
[383594956,1757016411290,-799.49453514,0.000411,120]
[383594957,1757016411314,-799.49453514,0.000411,120]
[383594958,1757016411342,-799.49453514,0.000411,120]
[383594959,1757016411370,-799.49453514,0.000411,120]
[383594960,1757016411399,-799.49453514,0.000411,120]
[383594961,1757016411427,-799.49453514,0.000411,120]
[383594962,1757016411454,-799.49453514,0.000411,120]
[383594963,1757016411480,-799.49453514,0.000411,120]
[383594964,1757016411508,-799.49453514,0.000411,120]
[383594965,1757016411535,-799.49,0.000411,120]
[383594966,1757016411562,-153.50186423,0.000411,120]
[383594967,1757016411590,-153.50186423,0.000411,120]
[383594968,1757016411627,-153.50186423,0.000411,120]
[383594969,1757016411655,-153.50186423,0.000411,120]
[383594970,1757016411682,-153.50186423,0.000411,120]
[383594971,1757016411709,-153.5,0.000411,120]
[383594972,1757016411736,-2571.0,0.000411,120]
[383594973,1757016411765,-158.0,0.000412,120]
[383594974,1757016411794,-15000.0,0.000415,120]
[383594975,1757016411822,-2000.0,0.000415,120]
[383594976,1757016411850,-20748.12630632,0.000415,120]
[383594977,1757016411880,-534.0,0.00041635,90]
[383594978,1757016411909,-1741.35,0.00041643,120]
[383594979,1757016411939,-153.0,0.000417,120]
[383594980,1757016411967,-700.0,0.00041803,60]
[383594981,1757016411997,-1000.0,0.0004188,120]
[383594982,1757016412024,-508.1106018,0.00041999,120]
[383594983,1757016412052,-347.6040796,0.00042,120]
[383594984,1757016412080,-100000.0,0.00042,120]
[383594985,1757016412107,-1000.0,0.00042,60]
[383594986,1757016412134,-10162.788743,0.00042,120]
[383594987,1757016412163,-10000.0,0.00042,120]
[383594988,1757016412192,-222.563543,0.00042137,120]
[383594989,1757016412220,-150.0,0.00042244,120]
[383594990,1757016412247,-560.0,0.00042295,90]
[383594991,1757016412275,-2635.40488755,0.000424,120]
[383594992,1757016412303,-1741.35,0.00042465,120]
[383594993,1757016412331,-2500.0,0.000425,120]
[383594994,1757016412359,-164.42627116,0.000425,120]
[383594995,1757016412387,-500.0,0.00042625,60]
[383594996,1757016412414,-1000.0,0.00042699,60]
[383594997,1757016412683,-2397.63166236,0.000428,120]